[Event "Titled Tuesday Blitz December 06 Late 2022"]
[White "Sattarov, Bobir"]
[Black "Tang, Andrew"]
[WhiteFideId "14203081"]
[BlackFideId "2059630"]
[WhiteElo "2358"]
[BlackElo "2582"]
[Result "0-1"]
[Round "03"]
[TimeControl "180+1"]
[Date "2022.12.06"]
[WhiteClock "0:00:04"]
[BlackClock "0:00:12"]

1. e4 {[%clk 0:03:00]}  e5 {[%clk 0:02:58]} 2. Nf3 {[%clk 0:03:00]}  Nc6 {[%clk 0:02:59]} 3. Bb5 {[%clk 0:03:01]}  g6 {[%clk 0:02:59]} 4. d4 {[%clk 0:03:00]}  exd4 {[%clk 0:02:59]} 5. Bg5 {[%clk 0:03:00]}  Be7 {[%clk 0:03:00]} 6. Bxe7 {[%clk 0:02:59]}  Qxe7 {[%clk 0:03:01]} 7. Bxc6 {[%clk 0:02:59]}  dxc6 {[%clk 0:03:01]} 8. Qxd4 {[%clk 0:03:00]}  Nf6 {[%clk 0:03:02]} 9. Nc3 {[%clk 0:03:00]}  Bg4 {[%clk 0:03:02]} 10. Nd2 {[%clk 0:03:00]}  c5 {[%clk 0:03:03]} 11. Qe3 {[%clk 0:03:00]}  O-O-O {[%clk 0:03:04]} 12. f3 {[%clk 0:03:00]}  Be6 {[%clk 0:03:04]} 13. O-O-O {[%clk 0:02:59]}  b6 {[%clk 0:03:05]} 14. Rhe1 {[%clk 0:02:57]}  Kb8 {[%clk 0:03:05]} 15. Qh6 {[%clk 0:02:54]}  Rhe8 {[%clk 0:01:55]} 16. Nf1 {[%clk 0:02:51]}  Rd4 {[%clk 0:01:33]} 17. Ne2 {[%clk 0:02:32]}  Rxd1+ {[%clk 0:00:42]} 18. Rxd1 {[%clk 0:02:33]}  Bxa2 {[%clk 0:00:41]} 19. b3 {[%clk 0:01:34]}  Qe5 {[%clk 0:00:40]} 20. Ne3 {[%clk 0:01:33]}  Qa1+ {[%clk 0:00:28]} 21. Kd2 {[%clk 0:01:32]}  Qb2 {[%clk 0:00:29]} 22. Nc1 {[%clk 0:01:05]}  Bb1 {[%clk 0:00:07]} 23. Nd3 {[%clk 0:01:02]}  Qa2 {[%clk 0:00:08]} 24. Qf4 {[%clk 0:00:54]}  Re6 {[%clk 0:00:06]} 25. e5 {[%clk 0:00:49]}  Nd5 {[%clk 0:00:05]} 26. Nxd5 {[%clk 0:00:28]}  Bxc2 {[%clk 0:00:05]} 27. N3b4 {[%clk 0:00:04]}  cxb4 {[%clk 0:00:02]} 28. Nxb4 {[%clk 0:00:04]}  Qxb3 {[%clk 0:00:01]} 29. Nxc2 {[%clk 0:00:04]}  Rc6 {[%clk 0:00:02]} 30. Qe4 {[%clk 0:00:04]}  Qc3+ {[%clk 0:00:02]} 31. Kc1 {[%clk 0:00:03]}  Kc8 {[%clk 0:00:03]} 32. Rd4 {[%clk 0:00:03]}  a5 {[%clk 0:00:02]} 33. Kd1 {[%clk 0:00:02]}  Rc5 {[%clk 0:00:02]} 34. f4 {[%clk 0:00:02]}  c6 {[%clk 0:00:02]} 35. Qd3 {[%clk 0:00:02]}  Qxd3+ {[%clk 0:00:02]} 36. Rxd3 {[%clk 0:00:02]}  b5 {[%clk 0:00:02]} 37. Nd4 {[%clk 0:00:02]}  Rc4 {[%clk 0:00:03]} 38. g3 {[%clk 0:00:02]}  b4 {[%clk 0:00:04]} 39. Nb3 {[%clk 0:00:02]}  a4 {[%clk 0:00:04]} 40. Na5 {[%clk 0:00:03]}  Rc5 {[%clk 0:00:05]} 41. Rd4 {[%clk 0:00:03]}  Rxa5 {[%clk 0:00:05]} 42. Rxb4 {[%clk 0:00:04]}  a3 {[%clk 0:00:06]} 43. Rb1 {[%clk 0:00:04]}  a2 {[%clk 0:00:06]} 44. Ra1 {[%clk 0:00:05]}  Kd7 {[%clk 0:00:07]} 45. Kc2 {[%clk 0:00:06]}  Ke6 {[%clk 0:00:08]} 46. Kb2 {[%clk 0:00:06]}  Kd5 {[%clk 0:00:08]} 47. Rxa2 {[%clk 0:00:07]}  Rxa2+ {[%clk 0:00:09]} 48. Kxa2 {[%clk 0:00:08]}  Ke4 {[%clk 0:00:09]} 49. Kb3 {[%clk 0:00:08]}  Kd3 {[%clk 0:00:09]} 50. Kb4 {[%clk 0:00:08]}  Kd4 {[%clk 0:00:09]} 51. Kb3 {[%clk 0:00:08]}  h5 {[%clk 0:00:10]} 52. h3 {[%clk 0:00:08]}  c5 {[%clk 0:00:10]} 53. Kc2 {[%clk 0:00:05]}  c4 {[%clk 0:00:10]} 54. Kd2 {[%clk 0:00:05]}  c3+ {[%clk 0:00:11]} 55. Kc2 {[%clk 0:00:05]}  Kc4 {[%clk 0:00:11]} 56. g4 {[%clk 0:00:05]}  hxg4 {[%clk 0:00:12]} 57. hxg4 {[%clk 0:00:05]}  Kd4 {[%clk 0:00:13]} 58. f5 {[%clk 0:00:04]}  gxf5 {[%clk 0:00:13]} 59. gxf5 {[%clk 0:00:05]}  Kxe5 {[%clk 0:00:14]} 60. Kxc3 {[%clk 0:00:05]}  Kxf5 {[%clk 0:00:15]} 61. Kd3 {[%clk 0:00:06]}  Kg4 {[%clk 0:00:15]} 62. Ke2 {[%clk 0:00:06]}  Kg3 {[%clk 0:00:14]} 63. Ke1 {[%clk 0:00:06]}  f5 {[%clk 0:00:14]} 64. Ke2 {[%clk 0:00:05]}  f4 {[%clk 0:00:12]} 65. Ke1 {[%clk 0:00:04]}  Kg2 {[%clk 0:00:12]} 0-1


[Site "https://www.chess.com"]

[Event "Titled Tuesday Blitz December 06 Late 2022"]
[White "Saya, Ethan"]
[Black "Jaferian, Koosha"]
[WhiteFideId "26095181"]
[BlackFideId "12507440"]
[WhiteElo "2178"]
[BlackElo "2127"]
[Result "1/2-1/2"]
[Round "03"]
[TimeControl "180+1"]
[Date "2022.12.07"]
[WhiteClock "0:00:41"]
[BlackClock "0:00:24"]

1. d4 {[%clk 0:03:00]}  Nf6 {[%clk 0:02:55]} 2. c4 {[%clk 0:03:00]}  e6 {[%clk 0:02:54]} 3. Nc3 {[%clk 0:03:00]}  Bb4 {[%clk 0:02:54]} 4. Bd2 {[%clk 0:03:00]}  O-O {[%clk 0:02:53]} 5. Nf3 {[%clk 0:02:59]}  d5 {[%clk 0:02:54]} 6. e3 {[%clk 0:02:58]}  c6 {[%clk 0:02:53]} 7. Bd3 {[%clk 0:02:58]}  Nbd7 {[%clk 0:02:54]} 8. Qe2 {[%clk 0:02:57]}  b6 {[%clk 0:02:54]} 9. O-O {[%clk 0:02:56]}  Bb7 {[%clk 0:02:53]} 10. e4 {[%clk 0:02:56]}  Bxc3 {[%clk 0:02:53]} 11. Bxc3 {[%clk 0:02:54]}  dxe4 {[%clk 0:02:54]} 12. Bxe4 {[%clk 0:02:55]}  Nxe4 {[%clk 0:02:55]} 13. Qxe4 {[%clk 0:02:56]}  Nf6 {[%clk 0:02:55]} 14. Qh4 {[%clk 0:02:51]}  c5 {[%clk 0:02:51]} 15. d5 {[%clk 0:02:47]}  exd5 {[%clk 0:02:49]} 16. Bxf6 {[%clk 0:02:36]}  Qxf6 {[%clk 0:02:48]} 17. Qxf6 {[%clk 0:02:34]}  gxf6 {[%clk 0:02:49]} 18. cxd5 {[%clk 0:02:34]}  Bxd5 {[%clk 0:02:50]} 19. Nh4 {[%clk 0:02:35]}  Rfe8 {[%clk 0:02:39]} 20. b3 {[%clk 0:02:28]}  Re2 {[%clk 0:02:37]} 21. Rfe1 {[%clk 0:02:25]}  Rae8 {[%clk 0:02:27]} 22. Kf1 {[%clk 0:02:25]}  Rxe1+ {[%clk 0:02:16]} 23. Rxe1 {[%clk 0:02:26]}  Rxe1+ {[%clk 0:02:16]} 24. Kxe1 {[%clk 0:02:27]}  c4 {[%clk 0:02:17]} 25. bxc4 {[%clk 0:02:24]}  Bxc4 {[%clk 0:02:18]} 26. a3 {[%clk 0:02:25]}  b5 {[%clk 0:02:09]} 27. Nf5 {[%clk 0:02:24]}  Kf8 {[%clk 0:01:55]} 28. Kd2 {[%clk 0:02:22]}  Bd5 {[%clk 0:01:41]} 29. g3 {[%clk 0:02:21]}  a5 {[%clk 0:01:36]} 30. Kc3 {[%clk 0:02:20]}  Bc6 {[%clk 0:01:31]} 31. Kd4 {[%clk 0:02:08]}  Ke8 {[%clk 0:01:29]} 32. Kc5 {[%clk 0:02:07]}  Kd7 {[%clk 0:01:09]} 33. Nd4 {[%clk 0:02:04]}  b4 {[%clk 0:01:06]} 34. axb4 {[%clk 0:01:47]}  axb4 {[%clk 0:01:06]} 35. Kxb4 {[%clk 0:01:39]}  Be4 {[%clk 0:01:00]} 36. Kc5 {[%clk 0:01:39]}  Ke7 {[%clk 0:00:59]} 37. Ne2 {[%clk 0:01:32]}  Bf3 {[%clk 0:00:57]} 38. Nf4 {[%clk 0:01:31]}  Kf8 {[%clk 0:00:54]} 39. Kd6 {[%clk 0:01:31]}  Kg7 {[%clk 0:00:54]} 40. Ke7 {[%clk 0:01:30]}  f5 {[%clk 0:00:54]} 41. Nd3 {[%clk 0:01:23]}  Be4 {[%clk 0:00:54]} 42. Ne5 {[%clk 0:01:22]}  Bd5 {[%clk 0:00:54]} 43. f4 {[%clk 0:01:19]}  Ba2 {[%clk 0:00:53]} 44. Nf3 {[%clk 0:01:16]}  Bd5 {[%clk 0:00:51]} 45. Nd4 {[%clk 0:01:10]}  Be4 {[%clk 0:00:50]} 46. Nb5 {[%clk 0:01:09]}  Bd5 {[%clk 0:00:44]} 47. Nd6 {[%clk 0:00:59]}  Be6 {[%clk 0:00:41]} 48. Ne8+ {[%clk 0:00:59]}  Kg6 {[%clk 0:00:42]} 49. Nc7 {[%clk 0:00:59]}  Ba2 {[%clk 0:00:40]} 50. Nb5 {[%clk 0:00:55]}  Kh5 {[%clk 0:00:33]} 51. h3 {[%clk 0:00:53]}  Bd5 {[%clk 0:00:33]} 52. Nd4 {[%clk 0:00:43]}  Bg2 {[%clk 0:00:28]} 53. Nxf5 {[%clk 0:00:43]}  Bxh3 {[%clk 0:00:28]} 54. Ne3 {[%clk 0:00:42]}  Kg6 {[%clk 0:00:23]} 55. g4 {[%clk 0:00:35]}  Bxg4 {[%clk 0:00:23]} 56. Nxg4 {[%clk 0:00:33]}  Kf5 {[%clk 0:00:24]} 57. Nh6+ {[%clk 0:00:32]}  Kxf4 {[%clk 0:00:24]} 58. Kxf7 {[%clk 0:00:32]}  Kg5 {[%clk 0:00:25]} 59. Kg7 {[%clk 0:00:32]}  Kf4 {[%clk 0:00:17]} 60. Kf6 {[%clk 0:00:31]}  Ke3 {[%clk 0:00:18]} 61. Ke5 {[%clk 0:00:32]}  Kd3 {[%clk 0:00:18]} 62. Kf4 {[%clk 0:00:32]}  Kd4 {[%clk 0:00:18]} 63. Nf5+ {[%clk 0:00:32]}  Kc4 {[%clk 0:00:19]} 64. Ke4 {[%clk 0:00:32]}  Kc5 {[%clk 0:00:18]} 65. Ne3 {[%clk 0:00:33]}  Kb4 {[%clk 0:00:18]} 66. Kd4 {[%clk 0:00:33]}  Ka4 {[%clk 0:00:18]} 67. Nd5 {[%clk 0:00:34]}  h5 {[%clk 0:00:18]} 68. Kc4 {[%clk 0:00:34]}  h4 {[%clk 0:00:19]} 69. Nc3+ {[%clk 0:00:35]}  Ka5 {[%clk 0:00:18]} 70. Ne4 {[%clk 0:00:35]}  h3 {[%clk 0:00:19]} 71. Ng3 {[%clk 0:00:35]}  h2 {[%clk 0:00:20]} 72. Nh1 {[%clk 0:00:35]}  Kb6 {[%clk 0:00:20]} 73. Kd4 {[%clk 0:00:36]}  Kc6 {[%clk 0:00:21]} 74. Ke4 {[%clk 0:00:37]}  Kd6 {[%clk 0:00:21]} 75. Ke3 {[%clk 0:00:38]}  Kd5 {[%clk 0:00:22]} 76. Kf3 {[%clk 0:00:39]}  Ke5 {[%clk 0:00:23]} 77. Kg3 {[%clk 0:00:40]}  Ke4 {[%clk 0:00:24]} 78. Kh3 {[%clk 0:00:41]}  Kf3 {[%clk 0:00:24]} 79. Kxh2 {[%clk 0:00:41]} 1/2-1/2


[Site "https://www.chess.com"]

[Event "Titled Tuesday Blitz December 06 Late 2022"]
[White "Shapiro, Daniel"]
[Black "Haszon, David"]
[WhiteFideId "2001780"]
[BlackFideId "733610"]
[WhiteElo "2296"]
[BlackElo "2210"]
[Result "1-0"]
[Round "03"]
[TimeControl "180+1"]
[Date "2022.12.07"]
[WhiteClock "0:00:27"]
[BlackClock "0:00:51"]

1. d4 {[%clk 0:03:00]}  Nf6 {[%clk 0:02:59]} 2. c4 {[%clk 0:03:00]}  c5 {[%clk 0:02:56]} 3. d5 {[%clk 0:02:59]}  b5 {[%clk 0:02:50]} 4. cxb5 {[%clk 0:02:59]}  a6 {[%clk 0:02:50]} 5. e3 {[%clk 0:02:59]}  d6 {[%clk 0:02:47]} 6. Nc3 {[%clk 0:02:57]}  axb5 {[%clk 0:02:46]} 7. Bxb5+ {[%clk 0:02:56]}  Bd7 {[%clk 0:02:46]} 8. Bd3 {[%clk 0:02:48]}  g6 {[%clk 0:02:45]} 9. h3 {[%clk 0:02:47]}  Bg7 {[%clk 0:02:45]} 10. Nf3 {[%clk 0:02:46]}  O-O {[%clk 0:02:46]} 11. O-O {[%clk 0:02:43]}  Na6 {[%clk 0:02:46]} 12. Re1 {[%clk 0:02:35]}  Nb4 {[%clk 0:02:45]} 13. Bf1 {[%clk 0:02:35]}  Bc8 {[%clk 0:02:40]} 14. e4 {[%clk 0:02:34]}  Nd7 {[%clk 0:02:40]} 15. Bf4 {[%clk 0:02:30]}  Ba6 {[%clk 0:02:29]} 16. e5 {[%clk 0:02:28]}  Bxf1 {[%clk 0:02:28]} 17. Kxf1 {[%clk 0:02:28]}  dxe5 {[%clk 0:02:28]} 18. Nxe5 {[%clk 0:02:27]}  Nxe5 {[%clk 0:02:27]} 19. Bxe5 {[%clk 0:02:28]}  Bxe5 {[%clk 0:02:21]} 20. Rxe5 {[%clk 0:02:26]}  c4 {[%clk 0:02:15]} 21. Qe2 {[%clk 0:02:07]}  Qc7 {[%clk 0:02:00]} 22. g3 {[%clk 0:01:10]}  Ra7 {[%clk 0:01:51]} 23. Re4 {[%clk 0:00:59]}  Rc8 {[%clk 0:01:44]} 24. Re1 {[%clk 0:00:52]}  Kf8 {[%clk 0:01:33]} 25. Qd2 {[%clk 0:00:36]}  Qc5 {[%clk 0:01:27]} 26. d6 {[%clk 0:00:34]}  Qxd6 {[%clk 0:01:21]} 27. Qh6+ {[%clk 0:00:27]}  Kg8 {[%clk 0:01:21]} 28. Rh4 {[%clk 0:00:28]}  Qf6 {[%clk 0:00:50]} 29. Qxh7+ {[%clk 0:00:27]}  Kf8 {[%clk 0:00:51]} 30. Qh8+ {[%clk 0:00:27]} 1-0


[Site "https://www.chess.com"]

[Event "Titled Tuesday Blitz December 06 Late 2022"]
[White "Shohat, Yotam"]
[Black "Perez Leiva, Jerzy Jesus"]
[WhiteFideId "2813955"]
[BlackFideId "3524337"]
[WhiteElo "2216"]
[BlackElo "2289"]
[Result "1-0"]
[Round "03"]
[TimeControl "180+1"]
[Date "2022.12.07"]
[WhiteClock "0:00:12"]
[BlackClock "0:00:09"]

1. e4 {[%clk 0:03:00]}  c5 {[%clk 0:02:59]} 2. Nf3 {[%clk 0:03:00]}  d6 {[%clk 0:03:00]} 3. d4 {[%clk 0:02:57]}  cxd4 {[%clk 0:03:01]} 4. Nxd4 {[%clk 0:02:57]}  Nf6 {[%clk 0:03:01]} 5. Nc3 {[%clk 0:02:58]}  a6 {[%clk 0:03:02]} 6. Be3 {[%clk 0:02:56]}  e6 {[%clk 0:03:02]} 7. f3 {[%clk 0:02:52]}  Nbd7 {[%clk 0:03:02]} 8. a4 {[%clk 0:02:47]}  Be7 {[%clk 0:02:54]} 9. g4 {[%clk 0:02:40]}  h6 {[%clk 0:02:45]} 10. Qd2 {[%clk 0:02:37]}  Qc7 {[%clk 0:02:37]} 11. h4 {[%clk 0:02:27]}  Ne5 {[%clk 0:02:28]} 12. O-O-O {[%clk 0:02:08]}  Nfd7 {[%clk 0:02:14]} 13. Be2 {[%clk 0:02:04]}  b5 {[%clk 0:01:50]} 14. axb5 {[%clk 0:01:51]}  Nc4 {[%clk 0:01:36]} 15. Bxc4 {[%clk 0:01:49]}  Qxc4 {[%clk 0:01:37]} 16. b3 {[%clk 0:01:49]}  Qc7 {[%clk 0:01:32]} 17. Nc6 {[%clk 0:01:41]}  Bf6 {[%clk 0:01:25]} 18. Bd4 {[%clk 0:01:26]}  axb5 {[%clk 0:01:05]} 19. Bxf6 {[%clk 0:01:25]}  Qxc6 {[%clk 0:01:05]} 20. Bxg7 {[%clk 0:01:18]}  Rg8 {[%clk 0:01:05]} 21. Bxh6 {[%clk 0:01:14]}  Qc5 {[%clk 0:00:42]} 22. Nb1 {[%clk 0:01:03]}  Ra1 {[%clk 0:00:26]} 23. Qxd6 {[%clk 0:00:49]}  Qxd6 {[%clk 0:00:16]} 24. Rxd6 {[%clk 0:00:48]}  f6 {[%clk 0:00:15]} 25. Kb2 {[%clk 0:00:45]}  Ra7 {[%clk 0:00:14]} 26. Rxe6+ {[%clk 0:00:38]}  Kf7 {[%clk 0:00:14]} 27. Rd6 {[%clk 0:00:39]}  Ne5 {[%clk 0:00:14]} 28. Rf1 {[%clk 0:00:31]}  Rh8 {[%clk 0:00:14]} 29. g5 {[%clk 0:00:30]}  Bh3 {[%clk 0:00:09]} 30. Rxf6+ {[%clk 0:00:25]}  Ke7 {[%clk 0:00:09]} 31. Rd1 {[%clk 0:00:22]}  Rc8 {[%clk 0:00:08]} 32. Nc3 {[%clk 0:00:21]}  Be6 {[%clk 0:00:06]} 33. Nd5+ {[%clk 0:00:20]}  Bxd5 {[%clk 0:00:06]} 34. Rxd5 {[%clk 0:00:21]}  Nc6 {[%clk 0:00:06]} 35. c3 {[%clk 0:00:15]}  b4 {[%clk 0:00:06]} 36. c4 {[%clk 0:00:10]}  Rca8 {[%clk 0:00:07]} 37. Rxc6 {[%clk 0:00:10]}  Ra1 {[%clk 0:00:06]} 38. Kc2 {[%clk 0:00:09]}  R8a2+ {[%clk 0:00:07]} 39. Kd3 {[%clk 0:00:09]}  Re1 {[%clk 0:00:07]} 40. Kd4 {[%clk 0:00:09]}  Ra5 {[%clk 0:00:05]} 41. Rxa5 {[%clk 0:00:08]}  Rd1+ {[%clk 0:00:06]} 42. Ke5 {[%clk 0:00:08]}  Rd7 {[%clk 0:00:05]} 43. Re6+ {[%clk 0:00:08]}  Kf7 {[%clk 0:00:06]} 44. Rf6+ {[%clk 0:00:08]}  Ke7 {[%clk 0:00:06]} 45. Bf8+ {[%clk 0:00:08]}  Ke8 {[%clk 0:00:06]} 46. Ra8+ {[%clk 0:00:08]}  Rd8 {[%clk 0:00:06]} 47. Rxd8+ {[%clk 0:00:09]}  Kxd8 {[%clk 0:00:07]} 48. Bxb4 {[%clk 0:00:09]}  Ke8 {[%clk 0:00:08]} 49. Bc3 {[%clk 0:00:09]}  Kd7 {[%clk 0:00:09]} 50. h5 {[%clk 0:00:09]}  Ke7 {[%clk 0:00:08]} 51. h6 {[%clk 0:00:10]}  Ke8 {[%clk 0:00:09]} 52. Ke6 {[%clk 0:00:10]}  Kd8 {[%clk 0:00:09]} 53. Rf7 {[%clk 0:00:10]}  Ke8 {[%clk 0:00:09]} 54. h7 {[%clk 0:00:11]}  Kd8 {[%clk 0:00:09]} 55. h8=Q# {[%clk 0:00:12]} 1-0


[Site "https://www.chess.com"]

[Event "Titled Tuesday Blitz December 06 Late 2022"]
[White "Slovineanu"]
[Black "Quizon, Daniel"]
[BlackFideId "5217911"]
[WhiteElo "2291"]
[BlackElo "2385"]
[Result "0-1"]
[Round "03"]
[TimeControl "180+1"]
[Date "2022.12.06"]
[WhiteClock "0:00:10"]
[BlackClock "0:00:41"]

1. d4 {[%clk 0:02:58]}  Nf6 {[%clk 0:02:59]} 2. Nf3 {[%clk 0:02:58]}  g6 {[%clk 0:02:59]} 3. Nbd2 {[%clk 0:02:57]}  d5 {[%clk 0:02:58]} 4. e3 {[%clk 0:02:57]}  Bg7 {[%clk 0:02:59]} 5. b4 {[%clk 0:02:57]}  O-O {[%clk 0:02:59]} 6. c4 {[%clk 0:02:57]}  c6 {[%clk 0:02:57]} 7. Be2 {[%clk 0:02:50]}  Re8 {[%clk 0:02:57]} 8. Bb2 {[%clk 0:02:44]}  a5 {[%clk 0:02:56]} 9. b5 {[%clk 0:02:39]}  cxb5 {[%clk 0:02:51]} 10. cxb5 {[%clk 0:02:37]}  Nbd7 {[%clk 0:02:42]} 11. O-O {[%clk 0:02:32]}  Nb6 {[%clk 0:02:42]} 12. a4 {[%clk 0:02:24]}  Bf5 {[%clk 0:02:41]} 13. Qb3 {[%clk 0:02:19]}  Ne4 {[%clk 0:02:31]} 14. Nxe4 {[%clk 0:01:54]}  dxe4 {[%clk 0:02:27]} 15. Nd2 {[%clk 0:01:53]}  e5 {[%clk 0:02:25]} 16. Rfd1 {[%clk 0:01:36]}  exd4 {[%clk 0:02:03]} 17. exd4 {[%clk 0:01:14]}  e3 {[%clk 0:01:23]} 18. fxe3 {[%clk 0:01:08]}  Qg5 {[%clk 0:01:03]} 19. Nf3 {[%clk 0:00:52]}  Qxe3+ {[%clk 0:01:03]} 20. Qxe3 {[%clk 0:00:53]}  Rxe3 {[%clk 0:01:04]} 21. Bf1 {[%clk 0:00:40]}  Bc2 {[%clk 0:00:47]} 22. Rd2 {[%clk 0:00:32]}  Bxa4 {[%clk 0:00:46]} 23. d5 {[%clk 0:00:31]}  Bxb2 {[%clk 0:00:45]} 24. Rxb2 {[%clk 0:00:31]}  Rb3 {[%clk 0:00:46]} 25. Rxb3 {[%clk 0:00:24]}  Bxb3 {[%clk 0:00:46]} 26. d6 {[%clk 0:00:25]}  a4 {[%clk 0:00:46]} 27. Ne5 {[%clk 0:00:16]}  Rd8 {[%clk 0:00:43]} 28. Rc1 {[%clk 0:00:10]}  Rxd6 {[%clk 0:00:41]} 29. Rc7 {[%clk 0:00:10]}  a3 {[%clk 0:00:40]} 30. Rxb7 {[%clk 0:00:10]}  a2 {[%clk 0:00:41]} 31. Ra7 {[%clk 0:00:10]}  Rd1 {[%clk 0:00:41]} 0-1


[Site "https://www.chess.com"]

[Event "Titled Tuesday Blitz December 06 Late 2022"]
[White "Souleidis, Georgios"]
[Black "Huber, Benedikt"]
[WhiteFideId "4206827"]
[BlackFideId "12923583"]
[WhiteElo "2401"]
[BlackElo "2199"]
[Result "1-0"]
[Round "03"]
[TimeControl "180+1"]
[Date "2022.12.07"]
[WhiteClock "0:01:43"]
[BlackClock "0:02:14"]

1. e4 {[%clk 0:02:53]}  e6 {[%clk 0:02:58]} 2. d4 {[%clk 0:02:52]}  d5 {[%clk 0:02:59]} 3. Nc3 {[%clk 0:02:53]}  Nf6 {[%clk 0:02:58]} 4. Bg5 {[%clk 0:02:50]}  Bb4 {[%clk 0:02:57]} 5. e5 {[%clk 0:02:50]}  h6 {[%clk 0:02:57]} 6. Bc1 {[%clk 0:02:25]}  Ne4 {[%clk 0:02:56]} 7. Ne2 {[%clk 0:02:24]}  c5 {[%clk 0:02:56]} 8. a3 {[%clk 0:02:20]}  Ba5 {[%clk 0:02:56]} 9. dxc5 {[%clk 0:02:14]}  Nxc3 {[%clk 0:02:55]} 10. Nxc3 {[%clk 0:02:09]}  Bxc3+ {[%clk 0:02:53]} 11. bxc3 {[%clk 0:02:10]}  Qc7 {[%clk 0:02:53]} 12. Be3 {[%clk 0:02:01]}  Nc6 {[%clk 0:02:52]} 13. f4 {[%clk 0:02:00]}  b6 {[%clk 0:02:24]} 14. cxb6 {[%clk 0:01:56]}  axb6 {[%clk 0:02:25]} 15. Bd3 {[%clk 0:01:51]}  O-O {[%clk 0:02:19]} 16. O-O {[%clk 0:01:51]}  Ba6 {[%clk 0:02:19]} 17. Qe2 {[%clk 0:01:46]}  Na5 {[%clk 0:02:14]} 18. Bxa6 {[%clk 0:01:43]} 1-0


[Site "https://www.chess.com"]

[Event "Titled Tuesday Blitz December 06 Late 2022"]
[White "Stoleriu, George"]
[Black "Kaganskiy, Gleb"]
[WhiteFideId "1227505"]
[BlackFideId "4132025"]
[WhiteElo "2287"]
[BlackElo "2165"]
[Result "1-0"]
[Round "03"]
[TimeControl "180+1"]
[Date "2022.12.07"]
[WhiteClock "0:00:55"]
[BlackClock "0:00:06"]

1. e4 {[%clk 0:03:00]}  e6 {[%clk 0:03:00]} 2. d4 {[%clk 0:02:53]}  d5 {[%clk 0:02:59]} 3. Nc3 {[%clk 0:02:52]}  Bb4 {[%clk 0:03:00]} 4. exd5 {[%clk 0:02:52]}  exd5 {[%clk 0:02:58]} 5. Bd3 {[%clk 0:02:52]}  Ne7 {[%clk 0:02:58]} 6. a3 {[%clk 0:02:53]}  Bd6 {[%clk 0:02:51]} 7. Nb5 {[%clk 0:02:48]}  c6 {[%clk 0:02:43]} 8. Nxd6+ {[%clk 0:02:48]}  Qxd6 {[%clk 0:02:44]} 9. Qf3 {[%clk 0:02:47]}  Nd7 {[%clk 0:02:38]} 10. Ne2 {[%clk 0:02:44]}  Nf6 {[%clk 0:02:34]} 11. Bf4 {[%clk 0:02:38]}  Qd8 {[%clk 0:02:27]} 12. h3 {[%clk 0:02:32]}  Bf5 {[%clk 0:02:17]} 13. Bxf5 {[%clk 0:02:27]}  Nxf5 {[%clk 0:02:18]} 14. Be5 {[%clk 0:02:28]}  Nd6 {[%clk 0:02:09]} 15. Bxf6 {[%clk 0:02:23]}  Qxf6 {[%clk 0:02:10]} 16. Qxf6 {[%clk 0:02:23]}  gxf6 {[%clk 0:02:11]} 17. Ng3 {[%clk 0:02:23]}  h5 {[%clk 0:01:51]} 18. h4 {[%clk 0:02:20]}  f5 {[%clk 0:01:49]} 19. O-O-O {[%clk 0:02:06]}  Ke7 {[%clk 0:01:49]} 20. Rde1+ {[%clk 0:02:02]}  Kf6 {[%clk 0:01:49]} 21. Ne2 {[%clk 0:02:02]}  Rae8 {[%clk 0:01:35]} 22. f3 {[%clk 0:01:59]}  Nb5 {[%clk 0:00:50]} 23. c3 {[%clk 0:01:57]}  Nc7 {[%clk 0:00:50]} 24. Nf4 {[%clk 0:01:38]}  Ne6 {[%clk 0:00:49]} 25. Nd3 {[%clk 0:01:38]}  Rhg8 {[%clk 0:00:44]} 26. Re2 {[%clk 0:01:32]}  Rg3 {[%clk 0:00:29]} 27. Rd1 {[%clk 0:01:30]}  Reg8 {[%clk 0:00:28]} 28. Rdd2 {[%clk 0:01:30]}  R3g7 {[%clk 0:00:17]} 29. Kd1 {[%clk 0:01:30]}  Rg3 {[%clk 0:00:17]} 30. Ke1 {[%clk 0:01:30]}  R3g7 {[%clk 0:00:18]} 31. Kf1 {[%clk 0:01:30]}  Rg3 {[%clk 0:00:18]} 32. Re5 {[%clk 0:01:28]}  R3g7 {[%clk 0:00:15]} 33. Rde2 {[%clk 0:01:28]}  Rd8 {[%clk 0:00:10]} 34. b4 {[%clk 0:01:19]}  Rgg8 {[%clk 0:00:10]} 35. Nc5 {[%clk 0:01:16]}  Nxc5 {[%clk 0:00:04]} 36. bxc5 {[%clk 0:01:16]}  Rd7 {[%clk 0:00:03]} 37. Re8 {[%clk 0:01:06]}  Rxe8 {[%clk 0:00:03]} 38. Rxe8 {[%clk 0:01:07]}  Re7 {[%clk 0:00:03]} 39. Rh8 {[%clk 0:01:04]}  Kg6 {[%clk 0:00:04]} 40. Rg8+ {[%clk 0:01:04]}  Kf6 {[%clk 0:00:04]} 41. Kf2 {[%clk 0:01:03]}  b6 {[%clk 0:00:03]} 42. cxb6 {[%clk 0:01:02]}  axb6 {[%clk 0:00:04]} 43. Rg5 {[%clk 0:01:01]}  Ra7 {[%clk 0:00:03]} 44. Rxh5 {[%clk 0:01:01]}  Rxa3 {[%clk 0:00:03]} 45. Rh6+ {[%clk 0:01:02]}  Kg7 {[%clk 0:00:02]} 46. Rxc6 {[%clk 0:01:02]}  b5 {[%clk 0:00:03]} 47. Kg3 {[%clk 0:01:02]}  b4 {[%clk 0:00:02]} 48. cxb4 {[%clk 0:01:02]}  Rb3 {[%clk 0:00:03]} 49. Rc5 {[%clk 0:01:01]}  Rxb4 {[%clk 0:00:03]} 50. Rxd5 {[%clk 0:01:02]}  Kg6 {[%clk 0:00:03]} 51. Kf4 {[%clk 0:01:02]}  Ra4 {[%clk 0:00:03]} 52. Rd6+ {[%clk 0:01:00]}  Kg7 {[%clk 0:00:03]} 53. Kxf5 {[%clk 0:00:59]}  Ra2 {[%clk 0:00:04]} 54. g4 {[%clk 0:00:58]}  Rf2 {[%clk 0:00:05]} 55. f4 {[%clk 0:00:58]}  Rh2 {[%clk 0:00:05]} 56. h5 {[%clk 0:00:59]}  Rh1 {[%clk 0:00:05]} 57. Kg5 {[%clk 0:00:58]}  Rh2 {[%clk 0:00:05]} 58. Rd7 {[%clk 0:00:57]}  Kg8 {[%clk 0:00:05]} 59. Kf6 {[%clk 0:00:54]}  Rh1 {[%clk 0:00:05]} 60. Rd8+ {[%clk 0:00:53]}  Kh7 {[%clk 0:00:06]} 61. Kxf7 {[%clk 0:00:54]}  Rg1 {[%clk 0:00:06]} 62. g5 {[%clk 0:00:54]}  Rf1 {[%clk 0:00:06]} 63. g6+ {[%clk 0:00:54]}  Kh6 {[%clk 0:00:06]} 64. Rh8# {[%clk 0:00:55]} 1-0


[Site "https://www.chess.com"]